[Event "*** Titled Tuesday 3|2 Blitz"]
[Site "Chess.com"]
[Date "2015.06.02"]
[Round "3"]
[White "VovAn1991"]
[Black "stepanosinovsky"]
[Result "1-0"]
[WhiteElo "2457"]
[BlackElo "2275"]
[TimeControl "180+2"]
[EndTime "11:32:17 PDT"]
[Termination "VovAn1991 won by resignation"]

1. e4 {[%clk 0:03:01.9]} 1... e5 {[%clk 0:02:59.9]} 2. Nf3 {[%clk 0:03:01.5]}
2... Nc6 {[%clk 0:03:01]} 3. Bc4 {[%clk 0:03:02.5]} 3... Nf6 {[%clk 0:03:01.3]}
4. d3 {[%clk 0:02:59.4]} 4... Be7 {[%clk 0:03:01.8]} 5. O-O {[%clk 0:02:59.9]}
5... d5 {[%clk 0:03:02.9]} 6. exd5 {[%clk 0:03:00.6]} 6... Nxd5 {[%clk
0:03:04.8]} 7. Re1 {[%clk 0:03:01.5]} 7... Bg4 {[%clk 0:03:06.5]} 8. h3 {[%clk
0:03:01.7]} 8... Bh5 {[%clk 0:03:08.1]} 9. g4 {[%clk 0:03:01.2]} 9... Bg6 {[%clk
0:03:09.5]} 10. Nxe5 {[%clk 0:03:02.8]} 10... Nxe5 {[%clk 0:03:11.4]} 11. Rxe5
{[%clk 0:03:04.4]} 11... Nb6 {[%clk 0:03:13.1]} 12. Bb3 {[%clk 0:03:02.3]} 12...
O-O {[%clk 0:03:13.1]} 13. Qf3 {[%clk 0:02:52.5]} 13... Kh8 {[%clk 0:03:11.2]}
14. Nc3 {[%clk 0:02:50.3]} 14... f5 {[%clk 0:03:06.6]} 15. Qg2 {[%clk
0:02:32.1]} 15... Bd6 {[%clk 0:02:57.1]} 16. Re2 {[%clk 0:02:31.3]} 16... fxg4
{[%clk 0:02:57.3]} 17. hxg4 {[%clk 0:02:33.2]} 17... Nd7 {[%clk 0:02:47.5]} 18.
Ne4 {[%clk 0:02:30]} 18... Ne5 {[%clk 0:02:31.5]} 19. f4 {[%clk 0:02:24.9]}
19... Bxe4 {[%clk 0:02:13]} 20. Rxe4 {[%clk 0:02:19.6]} 20... Bc5+ {[%clk
0:00:57]} 21. Kf1 {[%clk 0:01:49.2]} 21... Nxd3 {[%clk 0:00:33.3]} 22. cxd3
{[%clk 0:01:29.6]} 22... Qxd3+ {[%clk 0:00:33.5]} 23. Re2 {[%clk 0:01:20.3]}
23... Rae8 {[%clk 0:00:18.6]} 24. Bc2 {[%clk 0:01:21]} 24... Qc4 {[%clk
0:00:16.5]} 25. Qf3 {[%clk 0:01:11.2]} 25... g5 {[%clk 0:00:09.2]} 26. f5 {[%clk
0:01:09.5]} 26... Rf7 {[%clk 0:00:08.4]} 27. Qc3+ {[%clk 0:01:09.4]} 27... Qxc3
{[%clk 0:00:09.3]} 28. Rxe8+ {[%clk 0:01:10.6]} 28... Kg7 {[%clk 0:00:10.1]} 29.
bxc3 {[%clk 0:01:11.8]} 29... Rd7 {[%clk 0:00:11]} 30. Bxg5 {[%clk 0:01:12.3]}
1-0

[Event "*** Titled Tuesday 3|2 Blitz"]
[Site "Chess.com"]
[Date "2015.06.02"]
[Round "3"]
[White "dabee"]
[Black "GMG"]
[Result "0-1"]
[WhiteElo "2365"]
[BlackElo "2471"]
[TimeControl "180+2"]
[EndTime "11:32:47 PDT"]
[Termination "GMG won by checkmate"]

1. d4 {[%clk 0:03:01.9]} 1... d5 {[%clk 0:03:00.2]} 2. Nf3 {[%clk 0:02:59.8]}
2... a6 {[%clk 0:03:00.8]} 3. Bf4 {[%clk 0:02:57.4]} 3... Nf6 {[%clk 0:02:58.9]}
4. e3 {[%clk 0:02:57.9]} 4... Bf5 {[%clk 0:02:58]} 5. c4 {[%clk 0:02:57.8]} 5...
e6 {[%clk 0:02:58.1]} 6. Nc3 {[%clk 0:02:58.3]} 6... c6 {[%clk 0:02:53.3]} 7.
Qb3 {[%clk 0:02:58.1]} 7... b5 {[%clk 0:02:54.2]} 8. cxb5 {[%clk 0:02:55.5]}
8... axb5 {[%clk 0:02:54.7]} 9. a4 {[%clk 0:02:55.7]} 9... b4 {[%clk 0:02:52]}
10. Na2 {[%clk 0:02:56.4]} 10... Qa5 {[%clk 0:02:52.3]} 11. Nc1 {[%clk
0:02:55.1]} 11... Nbd7 {[%clk 0:02:50.7]} 12. Be2 {[%clk 0:02:33]} 12... c5
{[%clk 0:02:51]} 13. dxc5 {[%clk 0:02:26.5]} 13... Nxc5 {[%clk 0:02:51.3]} 14.
Qd1 {[%clk 0:02:23.8]} 14... b3+ {[%clk 0:02:50]} 15. Qd2 {[%clk 0:02:17.5]}
15... Nd3+ {[%clk 0:02:25.6]} 16. Nxd3 {[%clk 0:02:13.5]} 16... Ne4 {[%clk
0:02:12]} 17. Qxa5 {[%clk 0:02:12.6]} 17... Rxa5 {[%clk 0:02:13.9]} 18. Nd4
{[%clk 0:02:06.4]} 18... g5 {[%clk 0:02:00.2]} 19. Bg3 {[%clk 0:01:50]} 19...
Bg6 {[%clk 0:02:01.1]} 20. Nxb3 {[%clk 0:01:46.8]} 20... Ra8 {[%clk 0:02:00.2]}
21. f3 {[%clk 0:01:47.6]} 21... Nxg3 {[%clk 0:02:00.5]} 22. hxg3 {[%clk
0:01:47.9]} 22... Bg7 {[%clk 0:02:02.1]} 23. Nbc5 {[%clk 0:01:43.9]} 23... O-O
{[%clk 0:02:01.2]} 24. Kd2 {[%clk 0:01:39.2]} 24... Rfb8 {[%clk 0:02:00.4]} 25.
Ra2 {[%clk 0:01:36.6]} 25... e5 {[%clk 0:01:56]} 26. e4 {[%clk 0:01:36.3]} 26...
f5 {[%clk 0:01:52.2]} 27. exf5 {[%clk 0:01:25.6]} 27... Bxf5 {[%clk 0:01:53.1]}
28. g4 {[%clk 0:01:26.8]} 28... Bg6 {[%clk 0:01:54.4]} 29. Nd7 {[%clk
0:01:27.7]} 29... Re8 {[%clk 0:01:51.3]} 30. Nb6 {[%clk 0:01:27.2]} 30... Rad8
{[%clk 0:01:51.3]} 31. Nc5 {[%clk 0:01:23.2]} 31... e4 {[%clk 0:01:50.1]} 32.
Ne6 {[%clk 0:01:21.5]} 32... Rxe6 {[%clk 0:01:48.5]} 33. a5 {[%clk 0:01:19.9]}
33... Bd4 {[%clk 0:01:46.1]} 34. Nxd5 {[%clk 0:01:04.7]} 34... Rxd5 {[%clk
0:01:27.8]} 35. Bc4 {[%clk 0:01:04.2]} 35... Red6 {[%clk 0:01:28.8]} 36. a6
{[%clk 0:00:56.2]} 36... Ba7+ {[%clk 0:01:25.8]} 37. Ke2 {[%clk 0:00:55.5]}
37... exf3+ {[%clk 0:01:07.7]} 38. Kxf3 {[%clk 0:00:55.6]} 38... Rf6+ {[%clk
0:00:53.4]} 39. Kg3 {[%clk 0:00:54.3]} 39... Bf7 {[%clk 0:00:54.1]} 40. Bxd5
{[%clk 0:00:53.9]} 40... Bb8+ {[%clk 0:00:51.2]} 41. Kh3 {[%clk 0:00:53.2]}
41... Rh6# {[%clk 0:00:52.2]} 0-1

[Event "*** Titled Tuesday 3|2 Blitz"]
[Site "Chess.com"]
[Date "2015.06.02"]
[Round "3"]
[White "ilmago"]
[Black "chesswooog"]
[Result "0-1"]
[WhiteElo "1855"]
[BlackElo "1935"]
[TimeControl "180+2"]
[EndTime "11:32:59 PDT"]
[Termination "chesswooog won by resignation"]

1. e4 {[%clk 0:03:01.9]} 1... c5 {[%clk 0:03:00.8]} 2. Nf3 {[%clk 0:03:00.2]}
2... d6 {[%clk 0:03:01.6]} 3. d4 {[%clk 0:03:01.2]} 3... cxd4 {[%clk 0:03:03.5]}
4. Qxd4 {[%clk 0:03:00.8]} 4... a6 {[%clk 0:03:03.3]} 5. c4 {[%clk 0:02:59.8]}
5... Nc6 {[%clk 0:03:02.5]} 6. Qd3 {[%clk 0:03:00.4]} 6... g6 {[%clk 0:02:55.8]}
7. Nc3 {[%clk 0:03:00.6]} 7... Bg7 {[%clk 0:02:56.1]} 8. Be2 {[%clk 0:02:57.6]}
8... Nh6 {[%clk 0:02:57]} 9. O-O {[%clk 0:02:54.5]} 9... O-O {[%clk 0:02:57.3]}
10. Rd1 {[%clk 0:02:48.6]} 10... f5 {[%clk 0:02:57.4]} 11. e5 {[%clk 0:02:43.8]}
11... dxe5 {[%clk 0:02:56]} 12. Qxd8 {[%clk 0:02:39.7]} 12... Rxd8 {[%clk
0:02:56.8]} 13. Rxd8+ {[%clk 0:02:35.6]} 13... Nxd8 {[%clk 0:02:58.7]} 14. Bxh6
{[%clk 0:02:35]} 14... Bxh6 {[%clk 0:03:00.6]} 15. Nxe5 {[%clk 0:02:35.8]} 15...
Nf7 {[%clk 0:02:52.2]} 16. Nxf7 {[%clk 0:02:29.9]} 16... Kxf7 {[%clk 0:02:51]}
17. Rd1 {[%clk 0:02:31.3]} 17... Be6 {[%clk 0:02:50.6]} 18. Na4 {[%clk
0:02:26.3]} 18... b5 {[%clk 0:02:46.6]} 19. cxb5 {[%clk 0:02:04.3]} 19... axb5
{[%clk 0:02:47.2]} 20. Bxb5 {[%clk 0:02:04.9]} 20... Bxa2 {[%clk 0:02:48.2]} 21.
Bc6 {[%clk 0:01:54.8]} 21... Ra6 {[%clk 0:02:42.7]} 22. Bb5 {[%clk 0:01:44.4]}
22... Ra5 {[%clk 0:02:37.5]} 23. Nc3 {[%clk 0:01:43.4]} 23... Bb3 {[%clk
0:02:29.4]} 24. Rb1 {[%clk 0:01:37.4]} 24... Bg7 {[%clk 0:02:17.9]} 25. Be2
{[%clk 0:01:31.7]} 25... Rc5 {[%clk 0:02:09]} 26. Rc1 {[%clk 0:01:22.6]} 26...
Bh6 {[%clk 0:02:02.6]} 27. Ra1 {[%clk 0:01:22.9]} 27... Bd2 {[%clk 0:02:00.8]}
28. Ra3 {[%clk 0:01:21.7]} 28... Be6 {[%clk 0:01:26.8]} 29. h3 {[%clk
0:01:13.2]} 29... Bc1 {[%clk 0:01:25.6]} 30. Nd1 {[%clk 0:01:13.6]} 30... Rc2
{[%clk 0:01:22.8]} 31. Rc3 {[%clk 0:01:02.2]} 31... Rxe2 {[%clk 0:01:18.2]} 32.
Rxc1 {[%clk 0:01:02.5]} 32... Re1+ {[%clk 0:01:19.7]} 33. Kh2 {[%clk 0:01:03.3]}
33... Bb3 {[%clk 0:01:21.6]} 34. Rc3 {[%clk 0:00:59.9]} 34... Bxd1 {[%clk
0:01:22.3]} 35. Rc1 {[%clk 0:01:00.1]} 35... Rf1 {[%clk 0:01:13.9]} 36. f3
{[%clk 0:00:54.1]} 36... Be2 {[%clk 0:01:14.3]} 37. Rc2 {[%clk 0:00:53.8]} 37...
Bb5 {[%clk 0:01:11.7]} 38. Rc5 {[%clk 0:00:54.1]} 38... Be8 {[%clk 0:01:10.3]}
39. b4 {[%clk 0:00:51.6]} 39... Rb1 {[%clk 0:01:11.2]} 40. Rc4 {[%clk
0:00:52.1]} 40... Bb5 {[%clk 0:01:08.4]} 41. Rd4 {[%clk 0:00:52.1]} 41... e5
{[%clk 0:01:07.8]} 42. Rd5 {[%clk 0:00:52.7]} 42... Rxb4 {[%clk 0:01:06]} 43.
Rxe5 {[%clk 0:00:53.9]} 43... Kf6 {[%clk 0:01:07.3]} 44. Rc5 {[%clk 0:00:54.7]}
44... Rb2 {[%clk 0:01:06.7]} 45. h4 {[%clk 0:00:54.9]} 45... Bf1 {[%clk
0:01:07.1]} 46. Rc6+ {[%clk 0:00:54.4]} 46... Kg7 {[%clk 0:01:08.5]} 0-1

[Event "*** Titled Tuesday 3|2 Blitz"]
[Site "Chess.com"]
[Date "2015.06.02"]
[Round "3"]
[White "GMHess"]
[Black "iFrancisco"]
[Result "1-0"]
[WhiteElo "2478"]
[BlackElo "2295"]
[TimeControl "180+2"]
[EndTime "11:33:07 PDT"]
[Termination "GMHess won by resignation"]

1. b3 {[%clk 0:03:01.9]} 1... d5 {[%clk 0:03:00.7]} 2. Bb2 {[%clk 0:03:02.6]}
2... e6 {[%clk 0:02:52.5]} 3. Nf3 {[%clk 0:03:02.6]} 3... Nf6 {[%clk 0:02:53.6]}
4. e3 {[%clk 0:03:03.3]} 4... Be7 {[%clk 0:02:54.1]} 5. c4 {[%clk 0:03:04.2]}
5... O-O {[%clk 0:02:52.3]} 6. Be2 {[%clk 0:03:01.2]} 6... Nbd7 {[%clk
0:02:51.5]} 7. O-O {[%clk 0:03:02]} 7... b6 {[%clk 0:02:49.8]} 8. d4 {[%clk
0:03:02.3]} 8... Bb7 {[%clk 0:02:50.5]} 9. Nc3 {[%clk 0:03:01.3]} 9... c6 {[%clk
0:02:51.3]} 10. Qc2 {[%clk 0:03:00.8]} 10... Rc8 {[%clk 0:02:52.2]} 11. Rad1
{[%clk 0:02:51.4]} 11... Qc7 {[%clk 0:02:52.9]} 12. e4 {[%clk 0:02:44.7]} 12...
c5 {[%clk 0:02:02.9]} 13. exd5 {[%clk 0:02:34.8]} 13... exd5 {[%clk 0:02:02.4]}
14. dxc5 {[%clk 0:02:31.6]} 14... dxc4 {[%clk 0:01:57.9]} 15. Bxc4 {[%clk
0:02:19.8]} 15... Nxc5 {[%clk 0:01:52.9]} 16. Nb5 {[%clk 0:02:09.9]} 16... Qb8
{[%clk 0:01:53.9]} 17. Ng5 {[%clk 0:01:55.1]} 17... Nce4 {[%clk 0:01:40.2]} 18.
Bxf6 {[%clk 0:01:21.6]} 18... Nxf6 {[%clk 0:01:34.8]} 19. Rd7 {[%clk 0:01:18.2]}
19... a6 {[%clk 0:00:38.9]} 20. Nd4 {[%clk 0:00:23.9]} 20... b5 {[%clk
0:00:29.6]} 21. Nf5 {[%clk 0:00:17.7]} 21... bxc4 {[%clk 0:00:26.8]} 22. Nxe7+
{[%clk 0:00:18.6]} 22... Kh8 {[%clk 0:00:28]} 23. Nxc8 {[%clk 0:00:18.6]} 23...
Qxc8 {[%clk 0:00:28.8]} 24. Rxf7 {[%clk 0:00:17]} 24... Rxf7 {[%clk 0:00:10.8]}
25. Nxf7+ {[%clk 0:00:17.4]} 25... Kg8 {[%clk 0:00:12.2]} 26. Nd6 {[%clk
0:00:18.8]} 1-0

[Event "*** Titled Tuesday 3|2 Blitz"]
[Site "Chess.com"]
[Date "2015.06.02"]
[Round "3"]
[White "Malev212"]
[Black "ecwinslow"]
[Result "1-0"]
[WhiteElo "2212"]
[BlackElo "1994"]
[TimeControl "180+2"]
[EndTime "11:33:15 PDT"]
[Termination "Malev212 won on time"]

1. d4 {[%clk 0:03:01.9]} 1... Nf6 {[%clk 0:02:56.7]} 2. c4 {[%clk 0:03:02.1]}
2... e6 {[%clk 0:02:56]} 3. Nf3 {[%clk 0:03:01.5]} 3... c5 {[%clk 0:02:56]} 4.
d5 {[%clk 0:02:59.1]} 4... exd5 {[%clk 0:02:56]} 5. cxd5 {[%clk 0:02:55.7]} 5...
d6 {[%clk 0:02:57.1]} 6. Nc3 {[%clk 0:02:56.3]} 6... g6 {[%clk 0:02:57.5]} 7.
Nd2 {[%clk 0:02:56.9]} 7... Bg7 {[%clk 0:02:56.6]} 8. e4 {[%clk 0:02:57.2]} 8...
O-O {[%clk 0:02:55.5]} 9. Be2 {[%clk 0:02:57.7]} 9... Na6 {[%clk 0:02:52.2]} 10.
O-O {[%clk 0:02:57.8]} 10... Nc7 {[%clk 0:02:52.4]} 11. a4 {[%clk 0:02:51.9]}
11... Re8 {[%clk 0:02:45.6]} 12. f3 {[%clk 0:02:51.6]} 12... b6 {[%clk
0:02:44.1]} 13. Nc4 {[%clk 0:02:51.5]} 13... Ba6 {[%clk 0:02:43.4]} 14. Bg5
{[%clk 0:02:51.6]} 14... Qd7 {[%clk 0:02:34.6]} 15. b3 {[%clk 0:02:22]} 15...
Ng4 {[%clk 0:02:17.5]} 16. Rc1 {[%clk 0:01:27.4]} 16... Bd4+ {[%clk 0:02:10.9]}
17. Kh1 {[%clk 0:01:27.9]} 17... Bxc4 {[%clk 0:02:06.3]} 18. Bxc4 {[%clk
0:01:19.7]} 18... Ne3 {[%clk 0:02:06.4]} 19. Bxe3 {[%clk 0:01:17.2]} 19... Bxe3
{[%clk 0:02:07]} 20. Rb1 {[%clk 0:01:16.1]} 20... a6 {[%clk 0:01:59.7]} 21. Qd3
{[%clk 0:01:03.5]} 21... Bd4 {[%clk 0:01:55.6]} 22. b4 {[%clk 0:01:04.1]} 22...
f5 {[%clk 0:01:20.7]} 23. bxc5 {[%clk 0:01:02.1]} 23... bxc5 {[%clk 0:01:09.1]}
24. Ne2 {[%clk 0:00:53.8]} 24... Bf6 {[%clk 0:01:05.2]} 25. Nf4 {[%clk
0:00:47.9]} 25... Qxa4 {[%clk 0:00:49.8]} 26. Ne6 {[%clk 0:00:43.9]} 26... Nxe6
{[%clk 0:00:48.9]} 27. dxe6 {[%clk 0:00:43.7]} 27... fxe4 {[%clk 0:00:43]} 28.
fxe4 {[%clk 0:00:33.5]} 28... Be7 {[%clk 0:00:41.6]} 29. Rb7 {[%clk 0:00:30.6]}
29... Rab8 {[%clk 0:00:31.7]} 30. Rd7 {[%clk 0:00:30.2]} 30... Rb4 {[%clk
0:00:26.9]} 31. Bd5 {[%clk 0:00:29.3]} 31... Qb5 {[%clk 0:00:22.1]} 32. Qf3
{[%clk 0:00:26.8]} 1-0

[Event "*** Titled Tuesday 3|2 Blitz"]
[Site "Chess.com"]
[Date "2015.06.02"]
[Round "3"]
[White "Keaton87"]
[Black "IMRosen"]
[Result "0-1"]
[WhiteElo "2395"]
[BlackElo "2258"]
[TimeControl "180+2"]
[EndTime "11:33:27 PDT"]
[Termination "IMRosen won by resignation"]

1. d4 {[%clk 0:03:01.9]} 1... Nf6 {[%clk 0:03:00.1]} 2. Nf3 {[%clk 0:03:01.8]}
2... d5 {[%clk 0:02:58.5]} 3. c4 {[%clk 0:03:01.3]} 3... e6 {[%clk 0:02:59.6]}
4. Nc3 {[%clk 0:03:00.7]} 4... Be7 {[%clk 0:03:00.6]} 5. Bg5 {[%clk 0:02:57.8]}
5... O-O {[%clk 0:03:02.2]} 6. e3 {[%clk 0:02:58.2]} 6... a6 {[%clk 0:03:03.8]}
7. cxd5 {[%clk 0:02:54.7]} 7... exd5 {[%clk 0:03:05.7]} 8. Bd3 {[%clk
0:02:54.3]} 8... Nbd7 {[%clk 0:03:05.2]} 9. O-O {[%clk 0:02:54.8]} 9... Re8
{[%clk 0:03:03.9]} 10. Rc1 {[%clk 0:02:54.4]} 10... c6 {[%clk 0:03:01.7]} 11. a3
{[%clk 0:02:43.9]} 11... Nf8 {[%clk 0:03:02.8]} 12. b4 {[%clk 0:02:43.3]} 12...
Ng6 {[%clk 0:03:03.5]} 13. Qb3 {[%clk 0:02:41.2]} 13... Bd6 {[%clk 0:03:04.1]}
14. h3 {[%clk 0:02:25.3]} 14... h6 {[%clk 0:03:04.7]} 15. Bxg6 {[%clk
0:01:51.4]} 15... hxg5 {[%clk 0:02:51.1]} 16. Bd3 {[%clk 0:01:51.1]} 16... g4
{[%clk 0:02:51.2]} 17. hxg4 {[%clk 0:01:50.5]} 17... Nxg4 {[%clk 0:02:52.4]} 18.
e4 {[%clk 0:01:36.9]} 18... Bf4 {[%clk 0:02:37.7]} 19. Rce1 {[%clk 0:01:31.1]}
19... Be6 {[%clk 0:02:39]} 20. exd5 {[%clk 0:01:25.6]} 20... cxd5 {[%clk
0:02:40]} 21. Ne2 {[%clk 0:01:19.4]} 21... Bd6 {[%clk 0:02:29.9]} 22. Ng3 {[%clk
0:01:20.5]} 22... Qf6 {[%clk 0:02:26.9]} 23. Bb1 {[%clk 0:00:49.5]} 23... Qh6
{[%clk 0:02:22.5]} 24. Qd3 {[%clk 0:00:48.3]} 24... Rac8 {[%clk 0:02:17.4]} 25.
Re2 {[%clk 0:00:14.7]} 25... g6 {[%clk 0:02:11.1]} 26. Rfe1 {[%clk 0:00:13.6]}
26... Kg7 {[%clk 0:02:10.4]} 27. Rc2 {[%clk 0:00:14]} 27... Rxc2 {[%clk
0:02:06]} 28. Bxc2 {[%clk 0:00:15.9]} 28... Rh8 {[%clk 0:02:07.2]} 29. Kf1
{[%clk 0:00:14.3]} 29... Bxg3 {[%clk 0:01:55.4]} 30. fxg3 {[%clk 0:00:13.9]}
30... Qh1+ {[%clk 0:01:56.9]} 31. Ng1 {[%clk 0:00:15.2]} 31... Bf5 {[%clk
0:01:52.5]} 32. Qd2 {[%clk 0:00:14.1]} 32... Nh2+ {[%clk 0:01:53.1]} 33. Kf2
{[%clk 0:00:15.1]} 33... Ng4+ {[%clk 0:01:46.6]} 34. Kf1 {[%clk 0:00:16.5]}
34... Qh5 {[%clk 0:01:37.2]} 35. Nf3 {[%clk 0:00:14.1]} 35... Nf6 {[%clk
0:01:15.5]} 36. Bxf5 {[%clk 0:00:14.4]} 36... Qxf5 {[%clk 0:01:17.4]} 37. Qf4
{[%clk 0:00:15.3]} 37... Rh1+ {[%clk 0:01:16.6]} 38. Kf2 {[%clk 0:00:14.2]}
38... Qc2+ {[%clk 0:01:12.5]} 39. Re2 {[%clk 0:00:07.1]} 39... Ne4+ {[%clk
0:01:07.4]} 40. Qxe4 {[%clk 0:00:07.1]} 40... Qxe4 {[%clk 0:01:08.4]} 41. Rxe4
{[%clk 0:00:08.3]} 41... dxe4 {[%clk 0:01:10.3]} 42. Ne5 {[%clk 0:00:09.9]}
42... Ra1 {[%clk 0:01:09.9]} 43. Nc4 {[%clk 0:00:11]} 43... b5 {[%clk
0:01:08.2]} 44. Ne5 {[%clk 0:00:07.7]} 44... Rxa3 {[%clk 0:01:08.1]} 45. d5
{[%clk 0:00:09.3]} 45... Kf6 {[%clk 0:01:06.3]} 46. Nc6 {[%clk 0:00:10.2]} 46...
Rd3 {[%clk 0:01:01]} 0-1

[Event "*** Titled Tuesday 3|2 Blitz"]
[Site "Chess.com"]
[Date "2015.06.02"]
[Round "3"]
[White "Theladies"]
[Black "MFBerna"]
[Result "1-0"]
[WhiteElo "1878"]
[BlackElo "1821"]
[TimeControl "180+2"]
[EndTime "11:34:01 PDT"]
[Termination "Theladies won on time"]

1. d4 {[%clk 0:02:39.3]} 1... d5 {[%clk 0:02:59.9]} 2. Bf4 {[%clk 0:02:39]} 2...
Nf6 {[%clk 0:02:58.8]} 3. e3 {[%clk 0:02:39.9]} 3... e6 {[%clk 0:02:58.1]} 4.
Nd2 {[%clk 0:02:32.3]} 4... Be7 {[%clk 0:02:54.5]} 5. h3 {[%clk 0:02:29.6]} 5...
O-O {[%clk 0:02:55.1]} 6. Ngf3 {[%clk 0:02:19.3]} 6... b6 {[%clk 0:02:48.3]} 7.
Ne5 {[%clk 0:02:16.9]} 7... c5 {[%clk 0:02:46.4]} 8. c3 {[%clk 0:02:17.6]} 8...
Bb7 {[%clk 0:02:41]} 9. Bd3 {[%clk 0:02:18]} 9... Nc6 {[%clk 0:02:33.4]} 10. O-O
{[%clk 0:02:12.3]} 10... cxd4 {[%clk 0:02:30.3]} 11. exd4 {[%clk 0:02:08.7]}
11... Nxe5 {[%clk 0:02:31.1]} 12. Bxe5 {[%clk 0:02:03.3]} 12... Bd6 {[%clk
0:02:26.8]} 13. Nf3 {[%clk 0:01:58.5]} 13... Ne4 {[%clk 0:02:24.1]} 14. Bxd6
{[%clk 0:01:47.2]} 14... Qxd6 {[%clk 0:02:11]} 15. Qe2 {[%clk 0:01:45.3]} 15...
f6 {[%clk 0:02:00.9]} 16. Nd2 {[%clk 0:01:41.4]} 16... Nxd2 {[%clk 0:01:54.5]}
17. Qxd2 {[%clk 0:01:43.3]} 17... e5 {[%clk 0:01:53.6]} 18. Rae1 {[%clk
0:01:22.9]} 18... e4 {[%clk 0:01:51.2]} 19. Bc2 {[%clk 0:01:06.7]} 19... Ba6
{[%clk 0:01:48.8]} 20. Bb3 {[%clk 0:00:56.8]} 20... Bxf1 {[%clk 0:01:46.2]} 21.
Rxf1 {[%clk 0:00:57.5]} 21... f5 {[%clk 0:01:42.2]} 22. f4 {[%clk 0:00:45.7]}
22... Rfe8 {[%clk 0:01:25.8]} 23. Qe3 {[%clk 0:00:43.8]} 23... b5 {[%clk
0:01:19.9]} 24. a3 {[%clk 0:00:22.6]} 24... a5 {[%clk 0:01:18.6]} 25. g4 {[%clk
0:00:15.3]} 25... fxg4 {[%clk 0:01:14.5]} 26. hxg4 {[%clk 0:00:15.7]} 26... b4
{[%clk 0:01:07]} 27. axb4 {[%clk 0:00:11.5]} 27... axb4 {[%clk 0:01:08.9]} 28.
cxb4 {[%clk 0:00:08.3]} 28... Rab8 {[%clk 0:01:06.4]} 29. b5 {[%clk 0:00:09.5]}
29... Red8 {[%clk 0:00:57.1]} 30. Qxe4 {[%clk 0:00:09.8]} 30... Rxb5 {[%clk
0:00:54.8]} 31. Qd3 {[%clk 0:00:10]} 31... Rdb8 {[%clk 0:00:49.5]} 32. Bc2
{[%clk 0:00:05.9]} 32... Qh6 {[%clk 0:00:40.2]} 33. b3 {[%clk 0:00:04.7]} 33...
Qh4 {[%clk 0:00:35.8]} 34. Rf2 {[%clk 0:00:04.3]} 34... g6 {[%clk 0:00:16.5]}
35. Qf3 {[%clk 0:00:03.5]} 35... Re8 {[%clk 0:00:10]} 36. Bd3 {[%clk 0:00:03.3]}
36... Re1+ {[%clk 0:00:06.2]} 37. Bf1 {[%clk 0:00:04.6]} 1-0

[Event "*** Titled Tuesday 3|2 Blitz"]
[Site "Chess.com"]
[Date "2015.06.02"]
[Round "3"]
[White "MinhGTrAn"]
[Black "RitvarsReimanis"]
[Result "1/2-1/2"]
[WhiteElo "2565"]
[BlackElo "2347"]
[TimeControl "180+2"]
[EndTime "11:34:04 PDT"]
[Termination "Game drawn by repetition"]

1. d4 {[%clk 0:03:01.9]} 1... Nf6 {[%clk 0:03:00.9]} 2. Bg5 {[%clk 0:03:01.4]}
2... Ne4 {[%clk 0:03:00.9]} 3. Bf4 {[%clk 0:03:02.4]} 3... d5 {[%clk 0:03:00.8]}
4. e3 {[%clk 0:03:02.6]} 4... g6 {[%clk 0:03:01.8]} 5. Bd3 {[%clk 0:03:02.7]}
5... Nf6 {[%clk 0:03:03.1]} 6. h3 {[%clk 0:03:02.4]} 6... Bg7 {[%clk 0:03:04.4]}
7. Nf3 {[%clk 0:03:03.9]} 7... c5 {[%clk 0:03:05]} 8. O-O {[%clk 0:03:04.7]}
8... c4 {[%clk 0:03:05.2]} 9. Be2 {[%clk 0:03:05.2]} 9... O-O {[%clk 0:03:05.3]}
10. b3 {[%clk 0:03:06.6]} 10... cxb3 {[%clk 0:02:54.1]} 11. axb3 {[%clk
0:03:08.5]} 11... Nc6 {[%clk 0:02:54.5]} 12. c4 {[%clk 0:03:10.1]} 12... a6
{[%clk 0:02:51.3]} 13. Nc3 {[%clk 0:03:11.1]} 13... Be6 {[%clk 0:02:49.4]} 14.
Rc1 {[%clk 0:03:02.9]} 14... Rc8 {[%clk 0:02:49.1]} 15. Na4 {[%clk 0:02:41.5]}
15... dxc4 {[%clk 0:02:40.9]} 16. bxc4 {[%clk 0:02:41.7]} 16... Na5 {[%clk
0:02:36.6]} 17. Nc5 {[%clk 0:02:14.1]} 17... Rxc5 {[%clk 0:02:32.9]} 18. dxc5
{[%clk 0:02:15]} 18... Qc8 {[%clk 0:02:33.3]} 19. Nd4 {[%clk 0:02:05.4]} 19...
Bd7 {[%clk 0:02:27.1]} 20. Nb3 {[%clk 0:02:01.9]} 20... Ba4 {[%clk 0:02:23.7]}
21. Nxa5 {[%clk 0:01:28.1]} 21... Bxd1 {[%clk 0:02:23.2]} 22. Rfxd1 {[%clk
0:01:30]} 22... Ne4 {[%clk 0:02:11.7]} 23. Bf3 {[%clk 0:00:54.8]} 23... Nxc5
{[%clk 0:02:05]} 24. Rb1 {[%clk 0:00:56]} 24... e5 {[%clk 0:01:57.4]} 25. Bg3
{[%clk 0:00:48.2]} 25... e4 {[%clk 0:01:57.8]} 26. Bg4 {[%clk 0:00:46]} 26... f5
{[%clk 0:01:44.9]} 27. Be2 {[%clk 0:00:47.2]} 27... Na4 {[%clk 0:01:17.3]} 28.
Rxb7 {[%clk 0:00:36.7]} 28... Nc3 {[%clk 0:01:07.3]} 29. Rxg7+ {[%clk
0:00:36.8]} 29... Kxg7 {[%clk 0:01:07.4]} 30. Be5+ {[%clk 0:00:38]} 30... Kh6
{[%clk 0:01:08.6]} 31. Bxc3 {[%clk 0:00:39.9]} 31... Rd8 {[%clk 0:01:09.5]} 32.
Rxd8 {[%clk 0:00:32.6]} 32... Qxd8 {[%clk 0:01:11.4]} 33. c5 {[%clk 0:00:34.4]}
33... Qe7 {[%clk 0:01:08.1]} 34. c6 {[%clk 0:00:33.4]} 34... Qa3 {[%clk
0:01:03.3]} 35. Be1 {[%clk 0:00:30.9]} 35... g5 {[%clk 0:00:49.8]} 36. Kf1
{[%clk 0:00:25.3]} 36... Qc5 {[%clk 0:00:48.9]} 37. Bxa6 {[%clk 0:00:22.7]}
37... f4 {[%clk 0:00:50.2]} 38. exf4 {[%clk 0:00:08.7]} 38... gxf4 {[%clk
0:00:52.1]} 39. Be2 {[%clk 0:00:09.8]} 39... Kg5 {[%clk 0:00:51.9]} 40. Bd2
{[%clk 0:00:08.7]} 40... e3 {[%clk 0:00:42.8]} 41. fxe3 {[%clk 0:00:10.6]} 41...
fxe3 {[%clk 0:00:44.7]} 42. Be1 {[%clk 0:00:11]} 42... Qf5+ {[%clk 0:00:39.9]}
43. Bf3 {[%clk 0:00:12]} 43... Qb5+ {[%clk 0:00:38.7]} 44. Be2 {[%clk
0:00:13.4]} 44... Qf5+ {[%clk 0:00:39.6]} 45. Kg1 {[%clk 0:00:14.8]} 45... Qb1
{[%clk 0:00:38.5]} 46. Kf1 {[%clk 0:00:11.4]} 46... Qf5+ {[%clk 0:00:39.2]}
1/2-1/2